[Event "The Kvibergspelen 2023"]
[Site "Kviberg Park Hotel & Conference, Krutvagen 2, Gothenburg, Sweden"]
[Date "2023.09.15"]
[Round "4.13"]
[White "Bengtsson, Siv"]
[Black "Olsson, William"]
[Result "0-1"]
[TimeControl "15 minutes + 5 seconds per move from move one (Round 1 - 4) / 90 minutes + 30 seconds per move from move one (Round 5 - 8)"]
[BlackTitle "FM"]
[WhiteFideId "1701673"]
[BlackFideId "1741721"]
[WhiteElo "1995"]
[BlackElo "2376"]

1. e4 {[%clk 00:15:03]} {[%emt 00:00:04]} c5 {[%clk 00:15:07]} {[%emt
00:00:06]} 2. Nf3 {[%clk 00:15:06]} {[%emt 00:00:03]} d6 {[%clk 00:15:11]} 3.
d4 {[%clk 00:15:10]} {[%emt 00:00:02]} cxd4 {[%clk 00:15:15]} {[%emt 00:00:02]}
4. Nxd4 {[%clk 00:15:13]} Nf6 {[%clk 00:15:19]} {[%emt 00:00:02]} 5. Nc3 {[%clk
00:15:16]} {[%emt 00:00:01]} g6 {[%clk 00:15:22]} {[%emt 00:00:02]} 6. Be3
{[%clk 00:15:13]} {[%emt 00:00:08]} Bg7 {[%clk 00:15:26]} {[%emt 00:00:02]} 7.
f3 {[%clk 00:15:09]} {[%emt 00:00:09]} O-O {[%clk 00:15:26]} {[%emt 00:00:05]}
8. Bc4 {[%clk 00:15:12]} {[%emt 00:00:01]} Nc6 {[%clk 00:15:29]} {[%emt
00:00:03]} 9. Qd2 {[%clk 00:14:47]} {[%emt 00:00:30]} Bd7 {[%clk 00:15:30]}
{[%emt 00:00:03]} 10. O-O-O {[%clk 00:14:05]} {[%emt 00:00:48]} Rc8 {[%clk
00:15:30]} {[%emt 00:00:05]} 11. Bb3 {[%clk 00:14:04]} {[%emt 00:00:06]} Ne5
{[%clk 00:15:21]} {[%emt 00:00:13]} 12. Kb1 {[%clk 00:13:49]} {[%emt 00:00:20]}
Nc4 {[%clk 00:15:24]} {[%emt 00:00:03]} 13. Bxc4 {[%clk 00:13:52]} {[%emt
00:00:02]} Rxc4 {[%clk 00:15:27]} {[%emt 00:00:02]} 14. g4 {[%clk 00:13:25]}
{[%emt 00:00:32]} b5 {[%clk 00:15:04]} {[%emt 00:00:27]} 15. g5 {[%clk
00:12:52]} {[%emt 00:00:38]} Nh5 {[%clk 00:14:53]} {[%emt 00:00:16]} 16. Nce2
{[%clk 00:12:04]} {[%emt 00:00:54]} a5 {[%clk 00:12:50]} {[%emt 00:02:08]} 17.
Ng3 {[%clk 00:11:33]} {[%emt 00:00:36]} Qc8 {[%clk 00:12:18]} {[%emt 00:00:37]}
18. Nxh5 {[%clk 00:10:54]} {[%emt 00:00:44]} gxh5 {[%clk 00:12:20]} {[%emt
00:00:03]} 19. Qd3 {[%clk 00:06:48]} {[%emt 00:04:10]} e6 {[%clk 00:08:48]}
{[%emt 00:03:37]} 20. Ne2 {[%clk 00:06:09]} {[%emt 00:00:45]} d5 {[%clk
00:08:52]} {[%emt 00:00:02]} 21. Nf4 {[%clk 00:04:49]} {[%emt 00:01:25]} Bc6
{[%clk 00:08:26]} {[%emt 00:00:29]} 22. exd5 {[%clk 00:04:27]} {[%emt
00:00:29]} Bxd5 {[%clk 00:08:22]} {[%emt 00:00:09]} 23. Nxd5 {[%clk 00:04:19]}
{[%emt 00:00:12]} exd5 {[%clk 00:08:25]} {[%emt 00:00:02]} 24. f4 {[%clk
00:03:32]} {[%emt 00:00:51]} Re8 {[%clk 00:06:16]} {[%emt 00:02:14]} 25. Rhe1
{[%clk 00:03:11]} {[%emt 00:00:27]} Rce4 {[%clk 00:05:51]} {[%emt 00:00:29]} 26.
Bd2 {[%clk 00:02:00]} {[%emt 00:01:15]} Qc5 {[%clk 00:05:04]} {[%emt 00:00:52]}
27. c3 {[%clk 00:01:33]} {[%emt 00:00:34]} b4 {[%clk 00:04:38]} {[%emt
00:00:31]} 28. cxb4 {[%clk 00:01:26]} {[%emt 00:00:12]} axb4 {[%clk 00:04:37]}
{[%emt 00:00:06]} 29. Rc1 {[%clk 00:01:04]} {[%emt 00:00:27]} Rxe1 {[%clk
00:02:48]} {[%emt 00:01:54]} 30. Bxe1 {[%clk 00:00:58]} {[%emt 00:00:11]} Qd6
{[%clk 00:02:43]} {[%emt 00:00:11]} 31. f5 {[%clk 00:00:50]} {[%emt 00:00:11]}
Be5 {[%clk 00:02:46]} {[%emt 00:00:02]} 32. h4 {[%clk 00:00:39]} {[%emt
00:00:16]} h6 {[%clk 00:02:21]} {[%emt 00:00:32]} 33. gxh6 {[%clk 00:00:37]}
{[%emt 00:00:06]} Bf6 {[%clk 00:02:21]} {[%emt 00:00:04]} 34. Qg3+ {[%clk
00:00:25]} {[%emt 00:00:17]} Qxg3 {[%clk 00:02:22]} {[%emt 00:00:05]} 35. Bxg3
{[%clk 00:00:29]} {[%emt 00:00:02]} Re3 {[%clk 00:01:33]} {[%emt 00:00:53]} 36.
Bd6 {[%clk 00:00:29]} {[%emt 00:00:04]} b3 {[%clk 00:01:29]} {[%emt 00:00:09]}
37. axb3 {[%clk 00:00:16]} {[%emt 00:00:19]} Rxb3 {[%clk 00:01:24]} {[%emt
00:00:10]} 38. Rc8+ {[%clk 00:00:16]} {[%emt 00:00:05]} Kh7 {[%clk 00:01:27]}
{[%emt 00:00:03]} 39. Rb8 {[%clk 00:00:20]} Rxb8 {[%clk 00:01:23]} {[%emt
00:00:08]} 40. Bxb8 {[%clk 00:00:20]} {[%emt 00:00:01]} Bxh4 {[%clk 00:01:24]}
{[%emt 00:00:08]} 41. Bf4 {[%clk 00:00:23]} {[%emt 00:00:02]} Bf2 {[%clk
00:01:18]} {[%emt 00:00:11]} 42. b4 {[%clk 00:00:23]} {[%emt 00:00:05]} h4
{[%clk 00:01:22]} {[%emt 00:00:01]} 43. b5 {[%clk 00:00:27]} Bg3 {[%clk
00:01:24]} {[%emt 00:00:04]} 0-1

[Event "The Kvibergspelen 2023"]
[Site "Kviberg Park Hotel & Conference, Krutvagen 2, Gothenburg, Sweden"]
[Date "2023.09.15"]
[Round "4.14"]
[White "Lundberg, Roland"]
[Black "Jacobsen, Mikkel Manosri"]
[Result "0-1"]
[TimeControl "15 minutes + 5 seconds per move from move one (Round 1 - 4) / 90 minutes + 30 seconds per move from move one (Round 5 - 8)"]
[BlackTitle "FM"]
[WhiteFideId "1710656"]
[BlackFideId "1444514"]
[WhiteElo "1930"]
[BlackElo "2313"]

1. e4 {[%clk 00:13:51]} {[%emt 00:01:19]} c6 {[%clk 00:15:08]} {[%emt
00:00:02]} 2. Nf3 {[%clk 00:13:50]} {[%emt 00:00:06]} d5 {[%clk 00:15:12]}
{[%emt 00:00:01]} 3. Nc3 {[%clk 00:13:46]} {[%emt 00:00:10]} Bg4 {[%clk
00:15:15]} 4. h3 {[%clk 00:13:41]} {[%emt 00:00:10]} Bxf3 {[%clk 00:15:18]}
{[%emt 00:00:02]} 5. Qxf3 {[%clk 00:13:44]} {[%emt 00:00:02]} e6 {[%clk
00:15:22]} 6. d4 {[%clk 00:13:42]} {[%emt 00:00:07]} Nf6 {[%clk 00:15:14]}
{[%emt 00:00:13]} 7. Bg5 {[%clk 00:13:10]} {[%emt 00:00:37]} Be7 {[%clk
00:15:17]} {[%emt 00:00:02]} 8. e5 {[%clk 00:13:13]} {[%emt 00:00:02]} Nfd7
{[%clk 00:15:20]} {[%emt 00:00:02]} 9. Bxe7 {[%clk 00:12:52]} {[%emt 00:00:26]}
Qxe7 {[%clk 00:15:23]} {[%emt 00:00:01]} 10. Qg3 {[%clk 00:12:11]} {[%emt
00:00:46]} O-O {[%clk 00:15:16]} {[%emt 00:00:13]} 11. O-O-O {[%clk 00:12:09]}
{[%emt 00:00:08]} b5 {[%clk 00:15:11]} {[%emt 00:00:09]} 12. Bd3 {[%clk
00:12:08]} {[%emt 00:00:06]} a5 {[%clk 00:15:05]} {[%emt 00:00:11]} 13. f4
{[%clk 00:12:06]} {[%emt 00:00:07]} Kh8 {[%clk 00:13:58]} {[%emt 00:01:12]} 14.
f5 {[%clk 00:10:44]} {[%emt 00:01:26]} exf5 {[%clk 00:13:02]} {[%emt 00:01:02]}
15. Bxf5 {[%clk 00:10:47]} {[%emt 00:00:02]} Na6 {[%clk 00:13:05]} {[%emt
00:00:01]} 16. Qg4 {[%clk 00:09:47]} {[%emt 00:01:06]} Nb6 {[%clk 00:13:07]}
{[%emt 00:00:03]} 17. Rd3 {[%clk 00:09:38]} {[%emt 00:00:14]} g6 {[%clk
00:11:35]} {[%emt 00:01:38]} 18. Rg3 {[%clk 00:09:40]} {[%emt 00:00:02]} Nc4
{[%clk 00:11:38]} {[%emt 00:00:02]} 19. Re1 {[%clk 00:06:33]} {[%emt 00:03:12]}
Nc7 {[%clk 00:11:16]} {[%emt 00:00:27]} 20. Bd7 {[%clk 00:06:20]} {[%emt
00:00:18]} f5 {[%clk 00:09:38]} {[%emt 00:01:42]} 21. exf6 {[%clk 00:05:53]}
{[%emt 00:00:33]} Qxe1+ {[%clk 00:09:38]} {[%emt 00:00:05]} 22. Nd1 {[%clk
00:05:57]} {[%emt 00:00:01]} Rxf6 {[%clk 00:09:10]} {[%emt 00:00:33]} 23. b3
{[%clk 00:05:37]} {[%emt 00:00:25]} Qd2+ {[%clk 00:08:57]} {[%emt 00:00:18]} 24.
Kb2 {[%clk 00:05:40]} {[%emt 00:00:02]} 0-1

[Event "The Kvibergspelen 2023"]
[Site "Kviberg Park Hotel & Conference, Krutvagen 2, Gothenburg, Sweden"]
[Date "2023.09.15"]
[Round "4.15"]
[White "Hansen, Lars"]
[Black "Berg, Roy"]
[Result "1-0"]
[TimeControl "15 minutes + 5 seconds per move from move one (Round 1 - 4) / 90 minutes + 30 seconds per move from move one (Round 5 - 8)"]
[WhiteFideId "1402528"]
[BlackFideId "1711458"]
[WhiteElo "2188"]
[BlackElo "1954"]

1. e4 {[%clk 00:15:06]} {[%emt 00:00:02]} c6 {[%clk 00:15:09]} {[%emt
00:00:02]} 2. d4 {[%clk 00:15:04]} {[%emt 00:00:06]} d5 {[%clk 00:15:12]}
{[%emt 00:00:03]} 3. exd5 {[%clk 00:14:53]} {[%emt 00:00:17]} cxd5 {[%clk
00:15:15]} {[%emt 00:00:02]} 4. Bd3 {[%clk 00:14:55]} {[%emt 00:00:03]} Nc6
{[%clk 00:15:12]} {[%emt 00:00:08]} 5. c3 {[%clk 00:14:58]} {[%emt 00:00:01]}
Nf6 {[%clk 00:15:11]} {[%emt 00:00:06]} 6. Bf4 {[%clk 00:14:59]} {[%emt
00:00:03]} Bg4 {[%clk 00:14:42]} {[%emt 00:00:35]} 7. Qb3 {[%clk 00:14:59]}
{[%emt 00:00:05]} Qd7 {[%clk 00:14:44]} {[%emt 00:00:03]} 8. Nd2 {[%clk
00:15:01]} {[%emt 00:00:03]} e6 {[%clk 00:14:46]} {[%emt 00:00:04]} 9. Ngf3
{[%clk 00:14:59]} {[%emt 00:00:07]} Bxf3 {[%clk 00:14:49]} {[%emt 00:00:03]} 10.
Nxf3 {[%clk 00:15:02]} Bd6 {[%clk 00:14:47]} {[%emt 00:00:07]} 11. Bg3 {[%clk
00:13:26]} {[%emt 00:01:41]} O-O {[%clk 00:13:48]} {[%emt 00:01:03]} 12. O-O
{[%clk 00:13:29]} {[%emt 00:00:02]} Rab8 {[%clk 00:11:30]} {[%emt 00:02:24]} 13.
Rfe1 {[%clk 00:13:31]} {[%emt 00:00:03]} Bxg3 {[%clk 00:11:22]} {[%emt
00:00:12]} 14. hxg3 {[%clk 00:13:34]} {[%emt 00:00:02]} Qc7 {[%clk 00:10:27]}
{[%emt 00:00:59]} 15. Qc2 {[%clk 00:13:19]} {[%emt 00:00:21]} h6 {[%clk
00:10:07]} {[%emt 00:00:26]} 16. Qe2 {[%clk 00:12:53]} {[%emt 00:00:31]} Nd7
{[%clk 00:08:45]} {[%emt 00:01:26]} 17. g4 {[%clk 00:12:43]} {[%emt 00:00:16]}
Qf4 {[%clk 00:07:48]} {[%emt 00:01:01]} 18. Nd2 {[%clk 00:09:33]} {[%emt
00:03:14]} e5 {[%clk 00:05:48]} {[%emt 00:02:07]} 19. Bf5 {[%clk 00:08:57]}
{[%emt 00:00:40]} Rbd8 {[%clk 00:04:55]} {[%emt 00:00:57]} 20. g3 {[%clk
00:08:36]} {[%emt 00:00:27]} Qg5 {[%clk 00:04:48]} {[%emt 00:00:11]} 21. Nf3
{[%clk 00:08:27]} {[%emt 00:00:15]} Qe7 {[%clk 00:04:35]} {[%emt 00:00:18]} 22.
Bxd7 {[%clk 00:05:05]} {[%emt 00:03:28]} Rxd7 {[%clk 00:04:38]} {[%emt
00:00:02]} 23. Nxe5 {[%clk 00:05:09]} {[%emt 00:00:01]} Re8 {[%clk 00:03:35]}
{[%emt 00:01:07]} 24. Qb5 {[%clk 00:04:09]} {[%emt 00:01:04]} a6 {[%clk
00:02:59]} {[%emt 00:00:43]} 25. Qa4 {[%clk 00:03:26]} {[%emt 00:00:48]} Nxe5
{[%clk 00:02:51]} {[%emt 00:00:12]} 26. Rxe5 {[%clk 00:03:25]} {[%emt
00:00:06]} Qd8 {[%clk 00:02:55]} {[%emt 00:00:02]} 27. Rae1 {[%clk 00:03:21]}
{[%emt 00:00:09]} Rf8 {[%clk 00:02:12]} {[%emt 00:00:47]} 28. Qb4 {[%clk
00:03:12]} {[%emt 00:00:14]} Qf6 {[%clk 00:02:00]} {[%emt 00:00:17]} 29. Qxf8+
{[%clk 00:02:29]} {[%emt 00:00:48]} 1-0

[Event "The Kvibergspelen 2023"]
[Site "Kviberg Park Hotel & Conference, Krutvagen 2, Gothenburg, Sweden"]
[Date "2023.09.15"]
[Round "4.16"]
[White "Nilsson, Oliver"]
[Black "Nygren, Kim"]
[Result "0-1"]
[TimeControl "15 minutes + 5 seconds per move from move one (Round 1 - 4) / 90 minutes + 30 seconds per move from move one (Round 5 - 8)"]
[BlackTitle "CM"]
[WhiteFideId "1730177"]
[BlackFideId "1706136"]
[WhiteElo "1924"]
[BlackElo "2171"]

1. e4 {[%clk 00:15:09]} e6 {[%clk 00:15:05]} {[%emt 00:00:06]} 2. d3 {[%clk
00:15:12]} {[%emt 00:00:02]} c5 {[%clk 00:15:08]} {[%emt 00:00:02]} 3. Nf3
{[%clk 00:14:59]} {[%emt 00:00:18]} Nc6 {[%clk 00:15:11]} {[%emt 00:00:02]} 4.
g3 {[%clk 00:15:00]} {[%emt 00:00:03]} d5 {[%clk 00:15:02]} {[%emt 00:00:14]} 5.
Nbd2 {[%clk 00:15:03]} {[%emt 00:00:02]} g6 {[%clk 00:13:39]} {[%emt 00:01:28]}
6. Bg2 {[%clk 00:15:05]} {[%emt 00:00:04]} Bg7 {[%clk 00:13:43]} {[%emt
00:00:01]} 7. O-O {[%clk 00:14:47]} {[%emt 00:00:22]} Nge7 {[%clk 00:13:46]}
{[%emt 00:00:03]} 8. c3 {[%clk 00:14:44]} {[%emt 00:00:08]} O-O {[%clk
00:13:48]} {[%emt 00:00:03]} 9. Re1 {[%clk 00:14:46]} {[%emt 00:00:02]} b5
{[%clk 00:13:47]} {[%emt 00:00:06]} 10. Nf1 {[%clk 00:14:10]} {[%emt 00:00:43]}
Bb7 {[%clk 00:13:29]} {[%emt 00:00:23]} 11. exd5 {[%clk 00:13:40]} {[%emt
00:00:34]} Nxd5 {[%clk 00:13:24]} {[%emt 00:00:09]} 12. d4 {[%clk 00:13:36]}
{[%emt 00:00:10]} cxd4 {[%clk 00:13:15]} {[%emt 00:00:14]} 13. Nxd4 {[%clk
00:13:34]} {[%emt 00:00:07]} Nxd4 {[%clk 00:12:50]} {[%emt 00:00:30]} 14. cxd4
{[%clk 00:13:37]} Qb6 {[%clk 00:12:31]} {[%emt 00:00:24]} 15. Be3 {[%clk
00:12:42]} {[%emt 00:01:01]} Rad8 {[%clk 00:12:15]} {[%emt 00:00:21]} 16. Qb3
{[%clk 00:12:18]} {[%emt 00:00:28]} Nxe3 {[%clk 00:11:13]} {[%emt 00:01:08]} 17.
fxe3 {[%clk 00:12:21]} {[%emt 00:00:02]} Bxg2 {[%clk 00:10:59]} {[%emt
00:00:19]} 18. Kxg2 {[%clk 00:12:24]} {[%emt 00:00:01]} Qb7+ {[%clk 00:10:24]}
{[%emt 00:00:40]} 19. Kg1 {[%clk 00:12:28]} {[%emt 00:00:02]} e5 {[%clk
00:10:27]} {[%emt 00:00:03]} 20. a4 {[%clk 00:11:43]} {[%emt 00:00:49]} exd4
{[%clk 00:10:04]} {[%emt 00:00:28]} 21. Qxb5 {[%clk 00:11:46]} {[%emt
00:00:03]} Qe4 {[%clk 00:09:09]} {[%emt 00:00:58]} 22. Nd2 {[%clk 00:10:51]}
{[%emt 00:01:01]} Qc2 {[%clk 00:08:56]} {[%emt 00:00:17]} 23. Nc4 {[%clk
00:09:26]} {[%emt 00:01:30]} dxe3 {[%clk 00:08:18]} {[%emt 00:00:44]} 24. Nxe3
{[%clk 00:08:42]} {[%emt 00:00:49]} Bd4 {[%clk 00:08:14]} {[%emt 00:00:09]} 25.
Kh1 {[%clk 00:07:19]} {[%emt 00:01:27]} Bxe3 {[%clk 00:08:14]} {[%emt
00:00:05]} 26. Rxe3 {[%clk 00:06:50]} {[%emt 00:00:35]} Rd2 {[%clk 00:08:16]}
{[%emt 00:00:03]} 27. Qf1 {[%clk 00:06:28]} {[%emt 00:00:26]} Rxh2+ {[%clk
00:08:14]} {[%emt 00:00:08]} 28. Kg1 {[%clk 00:06:32]} {[%emt 00:00:01]} Qxb2
{[%clk 00:06:51]} {[%emt 00:01:28]} 29. Rb1 {[%clk 00:06:10]} {[%emt 00:00:27]}
Qd4 {[%clk 00:05:40]} {[%emt 00:01:15]} 30. Rbe1 {[%clk 00:06:13]} {[%emt
00:00:03]} Ra2 {[%clk 00:05:14]} {[%emt 00:00:31]} 31. Kh1 {[%clk 00:06:07]}
{[%emt 00:00:11]} Qxa4 {[%clk 00:04:42]} {[%emt 00:00:36]} 32. Qf6 {[%clk
00:05:34]} {[%emt 00:00:38]} Qg4 {[%clk 00:04:12]} {[%emt 00:00:35]} 33. Qh4
{[%clk 00:04:57]} {[%emt 00:00:43]} Qxh4+ {[%clk 00:04:11]} {[%emt 00:00:06]}
34. gxh4 {[%clk 00:05:00]} Ra4 {[%clk 00:04:12]} {[%emt 00:00:04]} 35. h5
{[%clk 00:05:01]} {[%emt 00:00:04]} Rh4+ {[%clk 00:04:14]} {[%emt 00:00:03]} 36.
Kg2 {[%clk 00:05:04]} {[%emt 00:00:01]} Rxh5 {[%clk 00:04:18]} {[%emt
00:00:03]} 0-1